{"text_format":"1","workbook":"xlsx","n_sheets":3,"sheets":["Prod_Entrada","Ventas","Filtro"],"not_rendered":{"charts":0,"images":0,"macros":1,"external_links":1,"defined_names":8,"comments":0,"pivot_tables":0},"unopened":[],"bounds":{"document_bytes":16777216,"sheet_cells":100000,"rows_first":2000,"rows_last":500,"rows_between":2000,"halvings":0,"cell_chars":16384,"cell_head_chars":4096},"cells_cut":0,"cells_raw":0,"read":"whole","date_system":"1900"}

{"sheet":"Prod_Entrada","index":0,"n_rows":939,"n_cols":12,"rows_kept":939,"cut":false,"hidden":false,"merged":[]}
["Item","Descripcion Producto","Cod Prod","Cant.","Ubic.","Precio/U+IVA","# Factura","Precio/U/Vent","Observaciones","Salid","Existe","SI/NO"]
[1,"Alambre acero inoxidable","AlaIno",28,"A-8",205.78,1592913,{"$f":"IF(AND(ISNUMBER(F2),ISNUMBER(D2),D2>0,ISNUMBER(F2)),F2*2.1,\"\")","v":432.13800000000003},"cielo raso",2,{"$f":"IF(AND(D2=\"\",J2=\"\"),\"\",D2-J2)","v":26},{"$f":"IF(K2=\"\",\"\",IF(K2<2,\"COMPRAR\",\"EXISTE\"))","v":"EXISTE"}]
[2,"Alambre retenes","AlaCor",15,"A-4",256.75,377685,{"$f":"IF(AND(ISNUMBER(F3),ISNUMBER(D3),D3>0,ISNUMBER(F3)),F3*2.1,\"\")","v":539.17500000000007},"nada",5,{"$f":"IF(AND(D3=\"\",J3=\"\"),\"\",D3-J3)","v":10},{"$f":"IF(K3=\"\",\"\",IF(K3<2,\"COMPRAR\",\"EXISTE\"))","v":"EXISTE"}]
[3,"Bujes cromado","AlaCro",41,"A-5",325.69,580223,{"$f":"IF(AND(ISNUMBER(F4),ISNUMBER(D4),D4>0,ISNUMBER(F4)),F4*2.1,\"\")","v":683.94900000000007},"siempre",3,38,"EXISTE"]
[4,"Alambre endurecido","AlaEnd",36,"A-7",62.32,1390375,{"$f":"IF(AND(ISNUMBER(F5),ISNUMBER(D5),D5>0,ISNUMBER(F5)),F5*2.1,\"\")","v":130.87200000000001},"tierra",4,32,"EXISTE"]
[5,"Bombas Hidraul 637 G","Bombas",15,"B-5",358951.36,4563,{"$f":"IF(AND(ISNUMBER(F6),ISNUMBER(D6),D6>0,ISNUMBER(F6)),F6*2.1,\"\")","v":753797.85600000003},"Motor 3304-3306",2,13,"EXISTE"]
[6,"Alambre acero inoxidable","Calate",22,"H34",45357,82727,{"$f":"IF(AND(ISNUMBER(F7),ISNUMBER(D7),D7>0,ISNUMBER(F7)),F7*2.1,\"\")","v":95249.7},"cielo raso",3,19,"EXISTE"]
[7,"Alambre corrugado","Hamite",43,"F21",29248.21,205103,61421.241000000002,"nada",4,39,"EXISTE"]
[8,"Alambre cromado","Tablit",20,"K76",32000,492933,67200,"siempre",1,19,"EXISTE"]
[9,"Computa 3408","Calcui",15,"P5",1657824.25,780763,3481430.9250000003,"tierra",5,10,"EXISTE"]
[10,"Bombas Aceite Motor 3304-3306","Emtrad",31,"X32",78321.45,1068593,164475.04500000001,"Motor 3304-3306",10,21,"EXISTE"]
[null,null,null,null,null,null,null,"",null,null,"",""]
[null,null,null,null,null,null,null,"",null,null,"",""]
[null,null,null,null,null,null,null,"",null,null,"",""]
[null,null,null,null,null,null,null,"",null,null,"",""]
[null,null,null,null,null,null,null,"",null,null,"",""]
[null,null,null,null,null,null,null,"",null,null,"",""]
[null,null,null,null,null,null,null,"",null,null,"",""]
[null,null,null,null,null,null,null,"",null,null,"",""]
[null,null,null,null,null,null,null,"",null,null,"",""]
[null,null,null,null,null,null,null,"",null,null,"",""]
[null,null,null,null,null,null,null,"",null,null,"",""]
[null,null,null,null,null,null,null,"",null,null,"",""]
[null,null,null,null,null,null,null,{"$f":"IF(AND(ISNUMBER(F24),ISNUMBER(D24),D24>0,ISNUMBER(F24)),F24*2.1,\"\")","v":""},null,null,"",""]
[null,null,null,null,null,null,null,"",null,null,"",""]
[null,null,null,null,null,null,null,"",null,null,"",""]
[null,null,null,null,null,null,null,"",null,null,"",""]
[null,null,null,null,null,null,null,"",null,null,"",""]
[null,null,null,null,null,null,null,"",null,null,"",""]
[null,null,null,null,null,null,null,"",null,null,"",""]
[null,null,null,null,null,null,null,"",null,null,"",""]
[null,null,null,null,null,null,null,"",null,null,"",""]
[null,null,null,null,null,null,null,"",null,null,"",""]
[null,null,null,null,null,null,null,"",null,null,"",""]
[null,null,null,null,null,null,null,"",null,null,"",""]
[null,null,null,null,null,null,null,"",null,null,"",""]
[null,null,null,null,null,null,null,"",null,null,"",""]
[null,null,null,null,null,null,null,"",null,null,"",""]
[null,null,null,null,null,null,null,"",null,null,"",""]
[null,null,null,null,null,null,null,"",null,null,"",""]
[null,null,null,null,null,null,null,"",null,null,"",""]
[null,null,null,null,null,null,null,"",null,null,"",""]
[null,null,null,null,null,null,null,"",null,null,"",""]
[null,null,null,null,null,null,null,"",null,null,"",""]
[null,null,null,null,null,null,null,"",null,null,"",""]
[null,null,null,null,null,null,null,"",null,null,"",""]
[null,null,null,null,null,null,null,"",null,null,"",""]
[null,null,null,null,null,null,null,"",null,null,"",""]
[null,null,null,null,null,null,null,"",null,null,"",""]
[null,null,null,null,null,null,null,"",null,null,"",""]
[null,null,null,null,null,null,null,"",null,null,"",""]
[null,null,null,null,null,null,null,"",null,null,"",""]
[null,null,null,null,null,null,null,"",null,null,"",""]
[null,null,null,null,null,null,null,"",null,null,"",""]
[null,null,null,null,null,null,null,"",null,null,"",""]
[null,null,null,null,null,null,null,"",null,null,"",""]
[null,null,null,null,null,null,null,"",null,null,"",""]
[null,null,null,null,null,null,null,"",null,null,"",""]
[null,null,null,null,null,null,null,"",null,null,"",""]
[null,null,null,null,null,null,null,"",null,null,{"$f":"IF(AND(D60=\"\",J60=\"\"),\"\",D60-J60)","v":""},{"$f":"IF(K60=\"\",\"\",IF(K60<2,\"COMPRAR\",\"EXISTE\"))","v":""}]
[null,null,null,null,null,null,null,"",null,null,"",""]
[null,null,null,null,null,null,null,"",null,null,"",""]
[null,null,null,null,null,null,null,"",null,null,"",""]
[null,null,null,null,null,null,null,"",null,null,"",""]
[null,null,null,null,null,null,null,"",null,null,"",""]
[null,null,null,null,null,null,null,"",null,null,"",""]
[null,null,null,null,null,null,null,"",null,null,"",""]
[null,null,null,null,null,null,null,"",null,null,"",""]
[null,null,null,null,null,null,null,"",null,null,"",""]
[null,null,null,null,null,null,null,"",null,null,"",""]
[null,null,null,null,null,null,null,"",null,null,"",""]
[null,null,null,null,null,null,null,"",null,null,"",""]
[null,null,null,null,null,null,null,"",null,null,"",""]
[null,null,null,null,null,null,null,"",null,null,"",""]
[null,null,null,null,null,null,null,"",null,null,"",""]
[null,null,null,null,null,null,null,"",null,null,"",""]
[null,null,null,null,null,null,null,"",null,null,"",""]
[null,null,null,null,null,null,null,"",null,null,"",""]
[null,null,null,null,null,null,null,"",null,null,"",""]
[null,null,null,null,null,null,null,"",null,null,"",""]
[null,null,null,null,null,null,null,"",null,null,"",""]
[null,null,null,null,null,null,null,"",null,null,"",""]
[null,null,null,null,null,null,null,"",null,null,"",""]
[null,null,null,null,null,null,null,"",null,null,"",""]
[null,null,null,null,null,null,null,"",null,null,"",""]
[null,null,null,null,null,null,null,"",null,null,"",""]
[null,null,null,null,null,null,null,"",null,null,"",""]
[null,null,null,null,null,null,null,{"$f":"IF(AND(ISNUMBER(F88),ISNUMBER(D88),D88>0,ISNUMBER(F88)),F88*2.1,\"\")","v":""},null,null,"",""]
[null,null,null,null,null,null,null,"",null,null,"",""]
[null,null,null,null,null,null,null,"",null,null,"",""]
[null,null,null,null,null,null,null,"",null,null,"",""]
[null,null,null,null,null,null,null,"",null,null,"",""]
[null,null,null,null,null,null,null,"",null,null,"",""]
[null,null,null,null,null,null,null,"",null,null,"",""]
[null,null,null,null,null,null,null,"",null,null,"",""]
[null,null,null,null,null,null,null,"",null,null,"",""]
[null,null,null,null,null,null,null,"",null,null,"",""]
[null,null,null,null,null,null,null,"",null,null,"",""]
[null,null,null,null,null,null,null,"",null,null,"",""]
[null,null,null,null,null,null,null,"",null,null,"",""]
[null,null,null,null,null,null,null,"",null,null,"",""]
[null,null,null,null,null,null,null,"",null,null,"",""]
[null,null,null,null,null,null,null,"",null,null,"",""]
[null,null,null,null,null,null,null,"",null,null,"",""]
[null,null,null,null,null,null,null,"",null,null,"",""]
[null,null,null,null,null,null,null,"",null,null,"",""]
[null,null,null,null,null,null,null,"",null,null,"",""]
[null,null,null,null,null,null,null,"",null,null,"",""]
[null,null,null,null,null,null,null,"",null,null,"",""]
[null,null,null,null,null,null,null,"",null,null,"",""]
[null,null,null,null,null,null,null,"",null,null,"",""]
[null,null,null,null,null,null,null,"",null,null,"",""]
[null,null,null,null,null,null,null,"",null,null,"",""]
[null,null,null,null,null,null,null,"",null,null,"",""]
[null,null,null,null,null,null,null,"",null,null,"",""]
[null,null,null,null,null,null,null,"",null,null,"",""]
[null,null,null,null,null,null,null,"",null,null,"",""]
[null,null,null,null,null,null,null,"",null,null,"",""]
[null,null,null,null,null,null,null,"",null,null,"",""]
[null,null,null,null,null,null,null,"",null,null,"",""]
[null,null,null,null,null,null,null,"",null,null,"",""]
[null,null,null,null,null,null,null,"",null,null,"",""]
[null,null,null,null,null,null,null,"",null,null,"",""]
[null,null,null,null,null,null,null,"",null,null,{"$f":"IF(AND(D124=\"\",J124=\"\"),\"\",D124-J124)","v":""},{"$f":"IF(K124=\"\",\"\",IF(K124<2,\"COMPRAR\",\"EXISTE\"))","v":""}]
[null,null,null,null,null,null,null,"",null,null,"",""]
[null,null,null,null,null,null,null,"",null,null,"",""]
[null,null,null,null,null,null,null,"",null,null,"",""]
[null,null,null,null,null,null,null,"",null,null,"",""]
[null,null,null,null,null,null,null,"",null,null,"",""]
[null,null,null,null,null,null,null,"",null,null,"",""]
[null,null,null,null,null,null,null,"",null,null,"",""]
[null,null,null,null,null,null,null,"",null,null,"",""]
[null,null,null,null,null,null,null,"",null,null,"",""]
[null,null,null,null,null,null,null,"",null,null,"",""]
[null,null,null,null,null,null,null,"",null,null,"",""]
[null,null,null,null,null,null,null,"",null,null,"",""]
[null,null,null,null,null,null,null,"",null,null,"",""]
[null,null,null,null,null,null,null,"",null,null,"",""]
[null,null,null,null,null,null,null,"",null,null,"",""]
[null,null,null,null,null,null,null,"",null,null,"",""]
[null,null,null,null,null,null,null,"",null,null,"",""]
[null,null,null,null,null,null,null,"",null,null,"",""]
[null,null,null,null,null,null,null,"",null,null,"",""]
[null,null,null,null,null,null,null,"",null,null,"",""]
[null,null,null,null,null,null,null,"",null,null,"",""]
[null,null,null,null,null,null,null,"",null,null,"",""]
[null,null,null,null,null,null,null,"",null,null,"",""]
[null,null,null,null,null,null,null,"",null,null,"",""]
[null,null,null,null,null,null,null,"",null,null,"",""]
[null,null,null,null,null,null,null,"",null,null,"",""]
[null,null,null,null,null,null,null,"",null,null,"",""]
[null,null,null,null,null,null,null,{"$f":"IF(AND(ISNUMBER(F152),ISNUMBER(D152),D152>0,ISNUMBER(F152)),F152*2.1,\"\")","v":""},null,null,"",""]
[null,null,null,null,null,null,null,"",null,null,"",""]
[null,null,null,null,null,null,null,"",null,null,"",""]
[null,null,null,null,null,null,null,"",null,null,"",""]
[null,null,null,null,null,null,null,"",null,null,"",""]
[null,null,null,null,null,null,null,"",null,null,"",""]
[null,null,null,null,null,null,null,"",null,null,"",""]
[null,null,null,null,null,null,null,"",null,null,"",""]
[null,null,null,null,null,null,null,"",null,null,"",""]
[null,null,null,null,null,null,null,"",null,null,"",""]
[null,null,null,null,null,null,null,"",null,null,"",""]
[null,null,null,null,null,null,null,"",null,null,"",""]
[null,null,null,null,null,null,null,"",null,null,"",""]
[null,null,null,null,null,null,null,"",null,null,"",""]
[null,null,null,null,null,null,null,"",null,null,"",""]
[null,null,null,null,null,null,null,"",null,null,"",""]
[null,null,null,null,null,null,null,"",null,null,"",""]
[null,null,null,null,null,null,null,"",null,null,"",""]
[null,null,null,null,null,null,null,"",null,null,"",""]
[null,null,null,null,null,null,null,"",null,null,"",""]
[null,null,null,null,null,null,null,"",null,null,"",""]
[null,null,null,null,null,null,null,"",null,null,"",""]
[null,null,null,null,null,null,null,"",null,null,"",""]
[null,null,null,null,null,null,null,"",null,null,"",""]
[null,null,null,null,null,null,null,"",null,null,"",""]
[null,null,null,null,null,null,null,"",null,null,"",""]
[null,null,null,null,null,null,null,"",null,null,"",""]
[null,null,null,null,null,null,null,"",null,null,"",""]
[null,null,null,null,null,null,null,"",null,null,"",""]
[null,null,null,null,null,null,null,"",null,null,"",""]
[null,null,null,null,null,null,null,"",null,null,"",""]
[null,null,null,null,null,null,null,"",null,null,"",""]
[null,null,null,null,null,null,null,"",null,null,"",""]
[null,null,null,null,null,null,null,"",null,null,"",""]
[null,null,null,null,null,null,null,"",null,null,"",""]
[null,null,null,null,null,null,null,"",null,null,"",""]
[null,null,null,null,null,null,null,"",null,null,{"$f":"IF(AND(D188=\"\",J188=\"\"),\"\",D188-J188)","v":""},{"$f":"IF(K188=\"\",\"\",IF(K188<2,\"COMPRAR\",\"EXISTE\"))","v":""}]
[null,null,null,null,null,null,null,"",null,null,"",""]
[null,null,null,null,null,null,null,"",null,null,"",""]
[null,null,null,null,null,null,null,"",null,null,"",""]
[null,null,null,null,null,null,null,"",null,null,"",""]
[null,null,null,null,null,null,null,"",null,null,"",""]
[null,null,null,null,null,null,null,"",null,null,"",""]
[null,null,null,null,null,null,null,"",null,null,"",""]
[null,null,null,null,null,null,null,"",null,null,"",""]
[null,null,null,null,null,null,null,"",null,null,"",""]
[null,null,null,null,null,null,null,"",null,null,"",""]
[null,null,null,null,null,null,null,"",null,null,"",""]
[null,null,null,null,null,null,null,"",null,null,"",""]
[null,null,null,null,null,null,null,"",null,null,"",""]
[null,null,null,null,null,null,null,"",null,null,"",""]
[null,null,null,null,null,null,null,"",null,null,"",""]
[null,null,null,null,null,null,null,"",null,null,"",""]
[null,null,null,null,null,null,null,"",null,null,"",""]
[null,null,null,null,null,null,null,"",null,null,"",""]
[null,null,null,null,null,null,null,"",null,null,"",""]
[null,null,null,null,null,null,null,"",null,null,"",""]
[null,null,null,null,null,null,null,"",null,null,"",""]
[null,null,null,null,null,null,null,"",null,null,"",""]
[null,null,null,null,null,null,null,"",null,null,"",""]
[null,null,null,null,null,null,null,"",null,null,"",""]
[null,null,null,null,null,null,null,"",null,null,"",""]
[null,null,null,null,null,null,null,"",null,null,"",""]
[null,null,null,null,null,null,null,"",null,null,"",""]
[null,null,null,null,null,null,null,{"$f":"IF(AND(ISNUMBER(F216),ISNUMBER(D216),D216>0,ISNUMBER(F216)),F216*2.1,\"\")","v":""},null,null,"",""]
[null,null,null,null,null,null,null,"",null,null,"",""]
[null,null,null,null,null,null,null,"",null,null,"",""]
[null,null,null,null,null,null,null,"",null,null,"",""]
[null,null,null,null,null,null,null,"",null,null,"",""]
[null,null,null,null,null,null,null,"",null,null,"",""]
[null,null,null,null,null,null,null,"",null,null,"",""]
[null,null,null,null,null,null,null,"",null,null,"",""]
[null,null,null,null,null,null,null,"",null,null,"",""]
[null,null,null,null,null,null,null,"",null,null,"",""]
[null,null,null,null,null,null,null,"",null,null,"",""]
[null,null,null,null,null,null,null,"",null,null,"",""]
[null,null,null,null,null,null,null,"",null,null,"",""]
[null,null,null,null,null,null,null,"",null,null,"",""]
[null,null,null,null,null,null,null,"",null,null,"",""]
[null,null,null,null,null,null,null,"",null,null,"",""]
[null,null,null,null,null,null,null,"",null,null,"",""]
[null,null,null,null,null,null,null,"",null,null,"",""]
[null,null,null,null,null,null,null,"",null,null,"",""]
[null,null,null,null,null,null,null,"",null,null,"",""]
[null,null,null,null,null,null,null,"",null,null,"",""]
[null,null,null,null,null,null,null,"",null,null,"",""]
[null,null,null,null,null,null,null,"",null,null,"",""]
[null,null,null,null,null,null,null,"",null,null,"",""]
[null,null,null,null,null,null,null,"",null,null,"",""]
[null,null,null,null,null,null,null,"",null,null,"",""]
[null,null,null,null,null,null,null,"",null,null,"",""]
[null,null,null,null,null,null,null,"",null,null,"",""]
[null,null,null,null,null,null,null,"",null,null,"",""]
[null,null,null,null,null,null,null,"",null,null,"",""]
[null,null,null,null,null,null,null,"",null,null,"",""]
[null,null,null,null,null,null,null,"",null,null,"",""]
[null,null,null,null,null,null,null,"",null,null,"",""]
[null,null,null,null,null,null,null,"",null,null,"",""]
[null,null,null,null,null,null,null,"",null,null,"",""]
[null,null,null,null,null,null,null,"",null,null,"",""]
[null,null,null,null,null,null,null,"",null,null,{"$f":"IF(AND(D252=\"\",J252=\"\"),\"\",D252-J252)","v":""},{"$f":"IF(K252=\"\",\"\",IF(K252<2,\"COMPRAR\",\"EXISTE\"))","v":""}]
[null,null,null,null,null,null,null,"",null,null,"",""]
[null,null,null,null,null,null,null,"",null,null,"",""]
[null,null,null,null,null,null,null,"",null,null,"",""]
[null,null,null,null,null,null,null,"",null,null,"",""]
[null,null,null,null,null,null,null,"",null,null,"",""]
[null,null,null,null,null,null,null,"",null,null,"",""]
[null,null,null,null,null,null,null,"",null,null,"",""]
[null,null,null,null,null,null,null,"",null,null,"",""]
[null,null,null,null,null,null,null,"",null,null,"",""]
[null,null,null,null,null,null,null,"",null,null,"",""]
[null,null,null,null,null,null,null,"",null,null,"",""]
[null,null,null,null,null,null,null,"",null,null,"",""]
[null,null,null,null,null,null,null,"",null,null,"",""]
[null,null,null,null,null,null,null,"",null,null,"",""]
[null,null,null,null,null,null,null,"",null,null,"",""]
[null,null,null,null,null,null,null,"",null,null,"",""]
[null,null,null,null,null,null,null,"",null,null,"",""]
[null,null,null,null,null,null,null,"",null,null,"",""]
[null,null,null,null,null,null,null,"",null,null,"",""]
[null,null,null,null,null,null,null,"",null,null,"",""]
[null,null,null,null,null,null,null,"",null,null,"",""]
[null,null,null,null,null,null,null,"",null,null,"",""]
[null,null,null,null,null,null,null,"",null,null,"",""]
[null,null,null,null,null,null,null,"",null,null,"",""]
[null,null,null,null,null,null,null,"",null,null,"",""]
[null,null,null,null,null,null,null,"",null,null,"",""]
[null,null,null,null,null,null,null,"",null,null,"",""]
[null,null,null,null,null,null,null,{"$f":"IF(AND(ISNUMBER(F280),ISNUMBER(D280),D280>0,ISNUMBER(F280)),F280*2.1,\"\")","v":""},null,null,"",""]
[null,null,null,null,null,null,null,"",null,null,"",""]
[null,null,null,null,null,null,null,"",null,null,"",""]
[null,null,null,null,null,null,null,"",null,null,"",""]
[null,null,null,null,null,null,null,"",null,null,"",""]
[null,null,null,null,null,null,null,"",null,null,"",""]
[null,null,null,null,null,null,null,"",null,null,"",""]
[null,null,null,null,null,null,null,"",null,null,"",""]
[null,null,null,null,null,null,null,"",null,null,"",""]
[null,null,null,null,null,null,null,"",null,null,"",""]
[null,null,null,null,null,null,null,"",null,null,"",""]
[null,null,null,null,null,null,null,"",null,null,"",""]
[null,null,null,null,null,null,null,"",null,null,"",""]
[null,null,null,null,null,null,null,"",null,null,"",""]
[null,null,null,null,null,null,null,"",null,null,"",""]
[null,null,null,null,null,null,null,"",null,null,"",""]
[null,null,null,null,null,null,null,"",null,null,"",""]
[null,null,null,null,null,null,null,"",null,null,"",""]
[null,null,null,null,null,null,null,"",null,null,"",""]
[null,null,null,null,null,null,null,"",null,null,"",""]
[null,null,null,null,null,null,null,"",null,null,"",""]
[null,null,null,null,null,null,null,"",null,null,"",""]
[null,null,null,null,null,null,null,"",null,null,"",""]
[null,null,null,null,null,null,null,"",null,null,"",""]
[null,null,null,null,null,null,null,"",null,null,"",""]
[null,null,null,null,null,null,null,"",null,null,"",""]
[null,null,null,null,null,null,null,"",null,null,"",""]
[null,null,null,null,null,null,null,"",null,null,"",""]
[null,null,null,null,null,null,null,"",null,null,"",""]
[null,null,null,null,null,null,null,"",null,null,"",""]
[null,null,null,null,null,null,null,"",null,null,"",""]
[null,null,null,null,null,null,null,"",null,null,"",""]
[null,null,null,null,null,null,null,"",null,null,"",""]
[null,null,null,null,null,null,null,"",null,null,"",""]
[null,null,null,null,null,null,null,"",null,null,"",""]
[null,null,null,null,null,null,null,"",null,null,"",""]
[null,null,null,null,null,null,null,"",null,null,{"$f":"IF(AND(D316=\"\",J316=\"\"),\"\",D316-J316)","v":""},{"$f":"IF(K316=\"\",\"\",IF(K316<2,\"COMPRAR\",\"EXISTE\"))","v":""}]
[null,null,null,null,null,null,null,"",null,null,"",""]
[null,null,null,null,null,null,null,"",null,null,"",""]
[null,null,null,null,null,null,null,"",null,null,"",""]
[null,null,null,null,null,null,null,"",null,null,"",""]
[null,null,null,null,null,null,null,"",null,null,"",""]
[null,null,null,null,null,null,null,"",null,null,"",""]
[null,null,null,null,null,null,null,"",null,null,"",""]
[null,null,null,null,null,null,null,"",null,null,"",""]
[null,null,null,null,null,null,null,"",null,null,"",""]
[null,null,null,null,null,null,null,"",null,null,"",""]
[null,null,null,null,null,null,null,"",null,null,"",""]
[null,null,null,null,null,null,null,"",null,null,"",""]
[null,null,null,null,null,null,null,"",null,null,"",""]
[null,null,null,null,null,null,null,"",null,null,"",""]
[null,null,null,null,null,null,null,"",null,null,"",""]
[null,null,null,null,null,null,null,"",null,null,"",""]
[null,null,null,null,null,null,null,"",null,null,"",""]
[null,null,null,null,null,null,null,"",null,null,"",""]
[null,null,null,null,null,null,null,"",null,null,"",""]
[null,null,null,null,null,null,null,"",null,null,"",""]
[null,null,null,null,null,null,null,"",null,null,"",""]
[null,null,null,null,null,null,null,"",null,null,"",""]
[null,null,null,null,null,null,null,"",null,null,"",""]
[null,null,null,null,null,null,null,"",null,null,"",""]
[null,null,null,null,null,null,null,"",null,null,"",""]
[null,null,null,null,null,null,null,"",null,null,"",""]
[null,null,null,null,null,null,null,"",null,null,"",""]
[null,null,null,null,null,null,null,{"$f":"IF(AND(ISNUMBER(F344),ISNUMBER(D344),D344>0,ISNUMBER(F344)),F344*2.1,\"\")","v":""},null,null,"",""]
[null,null,null,null,null,null,null,"",null,null,"",""]
[null,null,null,null,null,null,null,"",null,null,"",""]
[null,null,null,null,null,null,null,"",null,null,"",""]
[null,null,null,null,null,null,null,"",null,null,"",""]
[null,null,null,null,null,null,null,"",null,null,"",""]
[null,null,null,null,null,null,null,"",null,null,"",""]
[null,null,null,null,null,null,null,"",null,null,"",""]
[null,null,null,null,null,null,null,"",null,null,"",""]
[null,null,null,null,null,null,null,"",null,null,"",""]
[null,null,null,null,null,null,null,"",null,null,"",""]
[null,null,null,null,null,null,null,"",null,null,"",""]
[null,null,null,null,null,null,null,"",null,null,"",""]
[null,null,null,null,null,null,null,"",null,null,"",""]
[null,null,null,null,null,null,null,"",null,null,"",""]
[null,null,null,null,null,null,null,"",null,null,"",""]
[null,null,null,null,null,null,null,"",null,null,"",""]
[null,null,null,null,null,null,null,"",null,null,"",""]
[null,null,null,null,null,null,null,"",null,null,"",""]
[null,null,null,null,null,null,null,"",null,null,"",""]
[null,null,null,null,null,null,null,"",null,null,"",""]
[null,null,null,null,null,null,null,"",null,null,"",""]
[null,null,null,null,null,null,null,"",null,null,"",""]
[null,null,null,null,null,null,null,"",null,null,"",""]
[null,null,null,null,null,null,null,"",null,null,"",""]
[null,null,null,null,null,null,null,"",null,null,"",""]
[null,null,null,null,null,null,null,"",null,null,"",""]
[null,null,null,null,null,null,null,"",null,null,"",""]
[null,null,null,null,null,null,null,"",null,null,"",""]
[null,null,null,null,null,null,null,"",null,null,"",""]
[null,null,null,null,null,null,null,"",null,null,"",""]
[null,null,null,null,null,null,null,"",null,null,"",""]
[null,null,null,null,null,null,null,"",null,null,"",""]
[null,null,null,null,null,null,null,"",null,null,"",""]
[null,null,null,null,null,null,null,"",null,null,"",""]
[null,null,null,null,null,null,null,"",null,null,"",""]
[null,null,null,null,null,null,null,"",null,null,{"$f":"IF(AND(D380=\"\",J380=\"\"),\"\",D380-J380)","v":""},{"$f":"IF(K380=\"\",\"\",IF(K380<2,\"COMPRAR\",\"EXISTE\"))","v":""}]
[null,null,null,null,null,null,null,"",null,null,"",""]
[null,null,null,null,null,null,null,"",null,null,"",""]
[null,null,null,null,null,null,null,"",null,null,"",""]
[null,null,null,null,null,null,null,"",null,null,"",""]
[null,null,null,null,null,null,null,"",null,null,"",""]
[null,null,null,null,null,null,null,"",null,null,"",""]
[null,null,null,null,null,null,null,"",null,null,"",""]
[null,null,null,null,null,null,null,"",null,null,"",""]
[null,null,null,null,null,null,null,"",null,null,"",""]
[null,null,null,null,null,null,null,"",null,null,"",""]
[null,null,null,null,null,null,null,"",null,null,"",""]
[null,null,null,null,null,null,null,"",null,null,"",""]
[null,null,null,null,null,null,null,"",null,null,"",""]
[null,null,null,null,null,null,null,"",null,null,"",""]
[null,null,null,null,null,null,null,"",null,null,"",""]
[null,null,null,null,null,null,null,"",null,null,"",""]
[null,null,null,null,null,null,null,"",null,null,"",""]
[null,null,null,null,null,null,null,"",null,null,"",""]
[null,null,null,null,null,null,null,"",null,null,"",""]
[null,null,null,null,null,null,null,"",null,null,"",""]
[null,null,null,null,null,null,null,"",null,null,"",""]
[null,null,null,null,null,null,null,"",null,null,"",""]
[null,null,null,null,null,null,null,"",null,null,"",""]
[null,null,null,null,null,null,null,"",null,null,"",""]
[null,null,null,null,null,null,null,"",null,null,"",""]
[null,null,null,null,null,null,null,"",null,null,"",""]
[null,null,null,null,null,null,null,"",null,null,"",""]
[null,null,null,null,null,null,null,{"$f":"IF(AND(ISNUMBER(F408),ISNUMBER(D408),D408>0,ISNUMBER(F408)),F408*2.1,\"\")","v":""},null,null,"",""]
[null,null,null,null,null,null,null,"",null,null,"",""]
[null,null,null,null,null,null,null,"",null,null,"",""]
[null,null,null,null,null,null,null,"",null,null,"",""]
[null,null,null,null,null,null,null,"",null,null,"",""]
[null,null,null,null,null,null,null,"",null,null,"",""]
[null,null,null,null,null,null,null,"",null,null,"",""]
[null,null,null,null,null,null,null,"",null,null,"",""]
[null,null,null,null,null,null,null,"",null,null,"",""]
[null,null,null,null,null,null,null,"",null,null,"",""]
[null,null,null,null,null,null,null,"",null,null,"",""]
[null,null,null,null,null,null,null,"",null,null,"",""]
[null,null,null,null,null,null,null,"",null,null,"",""]
[null,null,null,null,null,null,null,"",null,null,"",""]
[null,null,null,null,null,null,null,"",null,null,"",""]
[null,null,null,null,null,null,null,"",null,null,"",""]
[null,null,null,null,null,null,null,"",null,null,"",""]
[null,null,null,null,null,null,null,"",null,null,"",""]
[null,null,null,null,null,null,null,"",null,null,"",""]
[null,null,null,null,null,null,null,"",null,null,"",""]
[null,null,null,null,null,null,null,"",null,null,"",""]
[null,null,null,null,null,null,null,"",null,null,"",""]
[null,null,null,null,null,null,null,"",null,null,"",""]
[null,null,null,null,null,null,null,"",null,null,"",""]
[null,null,null,null,null,null,null,"",null,null,"",""]
[null,null,null,null,null,null,null,"",null,null,"",""]
[null,null,null,null,null,null,null,"",null,null,"",""]
[null,null,null,null,null,null,null,"",null,null,"",""]
[null,null,null,null,null,null,null,"",null,null,"",""]
[null,null,null,null,null,null,null,"",null,null,"",""]
[null,null,null,null,null,null,null,"",null,null,"",""]
[null,null,null,null,null,null,null,"",null,null,"",""]
[null,null,null,null,null,null,null,"",null,null,"",""]
[null,null,null,null,null,null,null,"",null,null,"",""]
[null,null,null,null,null,null,null,"",null,null,"",""]
[null,null,null,null,null,null,null,"",null,null,"",""]
[null,null,null,null,null,null,null,"",null,null,{"$f":"IF(AND(D444=\"\",J444=\"\"),\"\",D444-J444)","v":""},{"$f":"IF(K444=\"\",\"\",IF(K444<2,\"COMPRAR\",\"EXISTE\"))","v":""}]
[null,null,null,null,null,null,null,"",null,null,"",""]
[null,null,null,null,null,null,null,"",null,null,"",""]
[null,null,null,null,null,null,null,"",null,null,"",""]
[null,null,null,null,null,null,null,"",null,null,"",""]
[null,null,null,null,null,null,null,"",null,null,"",""]
[null,null,null,null,null,null,null,"",null,null,"",""]
[null,null,null,null,null,null,null,"",null,null,"",""]
[null,null,null,null,null,null,null,"",null,null,"",""]
[null,null,null,null,null,null,null,"",null,null,"",""]
[null,null,null,null,null,null,null,"",null,null,"",""]
[null,null,null,null,null,null,null,"",null,null,"",""]
[null,null,null,null,null,null,null,"",null,null,"",""]
[null,null,null,null,null,null,null,"",null,null,"",""]
[null,null,null,null,null,null,null,"",null,null,"",""]
[null,null,null,null,null,null,null,"",null,null,"",""]
[null,null,null,null,null,null,null,"",null,null,"",""]
[null,null,null,null,null,null,null,"",null,null,"",""]
[null,null,null,null,null,null,null,"",null,null,"",""]
[null,null,null,null,null,null,null,"",null,null,"",""]
[null,null,null,null,null,null,null,"",null,null,"",""]
[null,null,null,null,null,null,null,"",null,null,"",""]
[null,null,null,null,null,null,null,"",null,null,"",""]
[null,null,null,null,null,null,null,"",null,null,"",""]
[null,null,null,null,null,null,null,"",null,null,"",""]
[null,null,null,null,null,null,null,"",null,null,"",""]
[null,null,null,null,null,null,null,"",null,null,"",""]
[null,null,null,null,null,null,null,"",null,null,"",""]
[null,null,null,null,null,null,null,{"$f":"IF(AND(ISNUMBER(F472),ISNUMBER(D472),D472>0,ISNUMBER(F472)),F472*2.1,\"\")","v":""},null,null,"",""]
[null,null,null,null,null,null,null,"",null,null,"",""]
[null,null,null,null,null,null,null,"",null,null,"",""]
[null,null,null,null,null,null,null,"",null,null,"",""]
[null,null,null,null,null,null,null,"",null,null,"",""]
[null,null,null,null,null,null,null,"",null,null,"",""]
[null,null,null,null,null,null,null,"",null,null,"",""]
[null,null,null,null,null,null,null,"",null,null,"",""]
[null,null,null,null,null,null,null,"",null,null,"",""]
[null,null,null,null,null,null,null,"",null,null,"",""]
[null,null,null,null,null,null,null,"",null,null,"",""]
[null,null,null,null,null,null,null,"",null,null,"",""]
[null,null,null,null,null,null,null,"",null,null,"",""]
[null,null,null,null,null,null,null,"",null,null,"",""]
[null,null,null,null,null,null,null,"",null,null,"",""]
[null,null,null,null,null,null,null,"",null,null,"",""]
[null,null,null,null,null,null,null,"",null,null,"",""]
[null,null,null,null,null,null,null,"",null,null,"",""]
[null,null,null,null,null,null,null,"",null,null,"",""]
[null,null,null,null,null,null,null,"",null,null,"",""]
[null,null,null,null,null,null,null,"",null,null,"",""]
[null,null,null,null,null,null,null,"",null,null,null,""]
[null,null,null,null,null,null,null,""]
[null,null,null,null,null,null,null,""]
[null,null,null,null,null,null,null,""]
[null,null,null,null,null,null,null,""]
[null,null,null,null,null,null,null,""]
[null,null,null,null,null,null,null,""]
[null,null,null,null,null,null,null,""]
[null,null,null,null,null,null,null,""]
[null,null,null,null,null,null,null,""]
[null,null,null,null,null,null,null,""]
[null,null,null,null,null,null,null,""]
[null,null,null,null,null,null,null,""]
[null,null,null,null,null,null,null,""]
[null,null,null,null,null,null,null,""]
[null,null,null,null,null,null,null,""]
[null,null,null,null,null,null,null,""]
[null,null,null,null,null,null,null,""]
[null,null,null,null,null,null,null,""]
[null,null,null,null,null,null,null,""]
[null,null,null,null,null,null,null,""]
[null,null,null,null,null,null,null,""]
[null,null,null,null,null,null,null,""]
[null,null,null,null,null,null,null,""]
[null,null,null,null,null,null,null,""]
[null,null,null,null,null,null,null,""]
[null,null,null,null,null,null,null,""]
[null,null,null,null,null,null,null,""]
[null,null,null,null,null,null,null,""]
[null,null,null,null,null,null,null,""]
[null,null,null,null,null,null,null,""]
[null,null,null,null,null,null,null,""]
[null,null,null,null,null,null,null,""]
[null,null,null,null,null,null,null,""]
[null,null,null,null,null,null,null,""]
[null,null,null,null,null,null,null,""]
[null,null,null,null,null,null,null,""]
[null,null,null,null,null,null,null,""]
[null,null,null,null,null,null,null,""]
[null,null,null,null,null,null,null,""]
[null,null,null,null,null,null,null,""]
[null,null,null,null,null,null,null,""]
[null,null,null,null,null,null,null,""]
[null,null,null,null,null,null,null,{"$f":"IF(AND(ISNUMBER(F536),ISNUMBER(D536),D536>0,ISNUMBER(F536)),F536*2.1,\"\")","v":""}]
[null,null,null,null,null,null,null,""]
[null,null,null,null,null,null,null,""]
[null,null,null,null,null,null,null,""]
[null,null,null,null,null,null,null,""]
[null,null,null,null,null,null,null,""]
[null,null,null,null,null,null,null,""]
[null,null,null,null,null,null,null,""]
[null,null,null,null,null,null,null,""]
[null,null,null,null,null,null,null,""]
[null,null,null,null,null,null,null,""]
[null,null,null,null,null,null,null,""]
[null,null,null,null,null,null,null,""]
[null,null,null,null,null,null,null,""]
[null,null,null,null,null,null,null,""]
[null,null,null,null,null,null,null,""]
[null,null,null,null,null,null,null,""]
[null,null,null,null,null,null,null,""]
[null,null,null,null,null,null,null,""]
[null,null,null,null,null,null,null,""]
[null,null,null,null,null,null,null,""]
[null,null,null,null,null,null,null,""]
[null,null,null,null,null,null,null,""]
[null,null,null,null,null,null,null,""]
[null,null,null,null,null,null,null,""]
[null,null,null,null,null,null,null,""]
[null,null,null,null,null,null,null,""]
[null,null,null,null,null,null,null,""]
[null,null,null,null,null,null,null,""]
[null,null,null,null,null,null,null,""]
[null,null,null,null,null,null,null,""]
[null,null,null,null,null,null,null,""]
[null,null,null,null,null,null,null,""]
[null,null,null,null,null,null,null,""]
[null,null,null,null,null,null,null,""]
[null,null,null,null,null,null,null,""]
[null,null,null,null,null,null,null,""]
[null,null,null,null,null,null,null,""]
[null,null,null,null,null,null,null,""]
[null,null,null,null,null,null,null,""]
[null,null,null,null,null,null,null,""]
[null,null,null,null,null,null,null,""]
[null,null,null,null,null,null,null,""]
[null,null,null,null,null,null,null,""]
[null,null,null,null,null,null,null,""]
[null,null,null,null,null,null,null,""]
[null,null,null,null,null,null,null,""]
[null,null,null,null,null,null,null,""]
[null,null,null,null,null,null,null,""]
[null,null,null,null,null,null,null,""]
[null,null,null,null,null,null,null,""]
[null,null,null,null,null,null,null,""]
[null,null,null,null,null,null,null,""]
[null,null,null,null,null,null,null,""]
[null,null,null,null,null,null,null,""]
[null,null,null,null,null,null,null,""]
[null,null,null,null,null,null,null,""]
[null,null,null,null,null,null,null,""]
[null,null,null,null,null,null,null,""]
[null,null,null,null,null,null,null,""]
[null,null,null,null,null,null,null,""]
[null,null,null,null,null,null,null,""]
[null,null,null,null,null,null,null,""]
[null,null,null,null,null,null,null,""]
[null,null,null,null,null,null,null,{"$f":"IF(AND(ISNUMBER(F600),ISNUMBER(D600),D600>0,ISNUMBER(F600)),F600*2.1,\"\")","v":""}]
[null,null,null,null,null,null,null,""]
[null,null,null,null,null,null,null,""]
[null,null,null,null,null,null,null,""]
[null,null,null,null,null,null,null,""]
[null,null,null,null,null,null,null,""]
[null,null,null,null,null,null,null,""]
[null,null,null,null,null,null,null,""]
[null,null,null,null,null,null,null,""]
[null,null,null,null,null,null,null,""]
[null,null,null,null,null,null,null,""]
[null,null,null,null,null,null,null,""]
[null,null,null,null,null,null,null,""]
[null,null,null,null,null,null,null,""]
[null,null,null,null,null,null,null,""]
[null,null,null,null,null,null,null,""]
[null,null,null,null,null,null,null,""]
[null,null,null,null,null,null,null,""]
[null,null,null,null,null,null,null,""]
[null,null,null,null,null,null,null,""]
[null,null,null,null,null,null,null,""]
[null,null,null,null,null,null,null,""]
[null,null,null,null,null,null,null,""]
[null,null,null,null,null,null,null,""]
[null,null,null,null,null,null,null,""]
[null,null,null,null,null,null,null,""]
[null,null,null,null,null,null,null,""]
[null,null,null,null,null,null,null,""]
[null,null,null,null,null,null,null,""]
[null,null,null,null,null,null,null,""]
[null,null,null,null,null,null,null,""]
[null,null,null,null,null,null,null,""]
[null,null,null,null,null,null,null,""]
[null,null,null,null,null,null,null,""]
[null,null,null,null,null,null,null,""]
[null,null,null,null,null,null,null,""]
[null,null,null,null,null,null,null,""]
[null,null,null,null,null,null,null,""]
[null,null,null,null,null,null,null,""]
[null,null,null,null,null,null,null,""]
[null,null,null,null,null,null,null,""]
[null,null,null,null,null,null,null,""]
[null,null,null,null,null,null,null,""]
[null,null,null,null,null,null,null,""]
[null,null,null,null,null,null,null,""]
[null,null,null,null,null,null,null,""]
[null,null,null,null,null,null,null,""]
[null,null,null,null,null,null,null,""]
[null,null,null,null,null,null,null,""]
[null,null,null,null,null,null,null,""]
[null,null,null,null,null,null,null,""]
[null,null,null,null,null,null,null,""]
[null,null,null,null,null,null,null,""]
[null,null,null,null,null,null,null,""]
[null,null,null,null,null,null,null,""]
[null,null,null,null,null,null,null,""]
[null,null,null,null,null,null,null,""]
[null,null,null,null,null,null,null,""]
[null,null,null,null,null,null,null,""]
[null,null,null,null,null,null,null,""]
[null,null,null,null,null,null,null,""]
[null,null,null,null,null,null,null,""]
[null,null,null,null,null,null,null,""]
[null,null,null,null,null,null,null,""]
[null,null,null,null,null,null,null,{"$f":"IF(AND(ISNUMBER(F664),ISNUMBER(D664),D664>0,ISNUMBER(F664)),F664*2.1,\"\")","v":""}]
[null,null,null,null,null,null,null,""]
[null,null,null,null,null,null,null,""]
[null,null,null,null,null,null,null,""]
[null,null,null,null,null,null,null,""]
[null,null,null,null,null,null,null,""]
[null,null,null,null,null,null,null,""]
[null,null,null,null,null,null,null,""]
[null,null,null,null,null,null,null,""]
[null,null,null,null,null,null,null,""]
[null,null,null,null,null,null,null,""]
[null,null,null,null,null,null,null,""]
[null,null,null,null,null,null,null,""]
[null,null,null,null,null,null,null,""]
[null,null,null,null,null,null,null,""]
[null,null,null,null,null,null,null,""]
[null,null,null,null,null,null,null,""]
[null,null,null,null,null,null,null,""]
[null,null,null,null,null,null,null,""]
[null,null,null,null,null,null,null,""]
[null,null,null,null,null,null,null,""]
[null,null,null,null,null,null,null,""]
[null,null,null,null,null,null,null,""]
[null,null,null,null,null,null,null,""]
[null,null,null,null,null,null,null,""]
[null,null,null,null,null,null,null,""]
[null,null,null,null,null,null,null,""]
[null,null,null,null,null,null,null,""]
[null,null,null,null,null,null,null,""]
[null,null,null,null,null,null,null,""]
[null,null,null,null,null,null,null,""]
[null,null,null,null,null,null,null,""]
[null,null,null,null,null,null,null,""]
[null,null,null,null,null,null,null,""]
[null,null,null,null,null,null,null,""]
[null,null,null,null,null,null,null,""]
[null,null,null,null,null,null,null,""]
[null,null,null,null,null,null,null,""]
[null,null,null,null,null,null,null,""]
[null,null,null,null,null,null,null,""]
[null,null,null,null,null,null,null,""]
[null,null,null,null,null,null,null,""]
[null,null,null,null,null,null,null,""]
[null,null,null,null,null,null,null,""]
[null,null,null,null,null,null,null,""]
[null,null,null,null,null,null,null,""]
[null,null,null,null,null,null,null,""]
[null,null,null,null,null,null,null,""]
[null,null,null,null,null,null,null,""]
[null,null,null,null,null,null,null,""]
[null,null,null,null,null,null,null,""]
[null,null,null,null,null,null,null,""]
[null,null,null,null,null,null,null,""]
[null,null,null,null,null,null,null,""]
[null,null,null,null,null,null,null,""]
[null,null,null,null,null,null,null,""]
[null,null,null,null,null,null,null,""]
[null,null,null,null,null,null,null,""]
[null,null,null,null,null,null,null,""]
[null,null,null,null,null,null,null,""]
[null,null,null,null,null,null,null,""]
[null,null,null,null,null,null,null,""]
[null,null,null,null,null,null,null,""]
[null,null,null,null,null,null,null,""]
[null,null,null,null,null,null,null,{"$f":"IF(AND(ISNUMBER(F728),ISNUMBER(D728),D728>0,ISNUMBER(F728)),F728*2.1,\"\")","v":""}]
[null,null,null,null,null,null,null,""]
[null,null,null,null,null,null,null,""]
[null,null,null,null,null,null,null,""]
[null,null,null,null,null,null,null,""]
[null,null,null,null,null,null,null,""]
[null,null,null,null,null,null,null,""]
[null,null,null,null,null,null,null,""]
[null,null,null,null,null,null,null,""]
[null,null,null,null,null,null,null,""]
[null,null,null,null,null,null,null,""]
[null,null,null,null,null,null,null,""]
[null,null,null,null,null,null,null,""]
[null,null,null,null,null,null,null,""]
[null,null,null,null,null,null,null,""]
[null,null,null,null,null,null,null,""]
[null,null,null,null,null,null,null,""]
[null,null,null,null,null,null,null,""]
[null,null,null,null,null,null,null,""]
[null,null,null,null,null,null,null,""]
[null,null,null,null,null,null,null,""]
[null,null,null,null,null,null,null,""]
[null,null,null,null,null,null,null,""]
[null,null,null,null,null,null,null,""]
[null,null,null,null,null,null,null,""]
[null,null,null,null,null,null,null,""]
[null,null,null,null,null,null,null,""]
[null,null,null,null,null,null,null,""]
[null,null,null,null,null,null,null,""]
[null,null,null,null,null,null,null,""]
[null,null,null,null,null,null,null,""]
[null,null,null,null,null,null,null,""]
[null,null,null,null,null,null,null,""]
[null,null,null,null,null,null,null,""]
[null,null,null,null,null,null,null,""]
[null,null,null,null,null,null,null,""]
[null,null,null,null,null,null,null,""]
[null,null,null,null,null,null,null,""]
[null,null,null,null,null,null,null,""]
[null,null,null,null,null,null,null,""]
[null,null,null,null,null,null,null,""]
[null,null,null,null,null,null,null,""]
[null,null,null,null,null,null,null,""]
[null,null,null,null,null,null,null,""]
[null,null,null,null,null,null,null,""]
[null,null,null,null,null,null,null,""]
[null,null,null,null,null,null,null,""]
[null,null,null,null,null,null,null,""]
[null,null,null,null,null,null,null,""]
[null,null,null,null,null,null,null,""]
[null,null,null,null,null,null,null,""]
[null,null,null,null,null,null,null,""]
[null,null,null,null,null,null,null,""]
[null,null,null,null,null,null,null,""]
[null,null,null,null,null,null,null,""]
[null,null,null,null,null,null,null,""]
[null,null,null,null,null,null,null,""]
[null,null,null,null,null,null,null,""]
[null,null,null,null,null,null,null,""]
[null,null,null,null,null,null,null,""]
[null,null,null,null,null,null,null,""]
[null,null,null,null,null,null,null,""]
[null,null,null,null,null,null,null,""]
[null,null,null,null,null,null,null,""]
[null,null,null,null,null,null,null,{"$f":"IF(AND(ISNUMBER(F792),ISNUMBER(D792),D792>0,ISNUMBER(F792)),F792*2.1,\"\")","v":""}]
[null,null,null,null,null,null,null,""]
[null,null,null,null,null,null,null,""]
[null,null,null,null,null,null,null,""]
[null,null,null,null,null,null,null,""]
[null,null,null,null,null,null,null,""]
[null,null,null,null,null,null,null,""]
[null,null,null,null,null,null,null,""]
[null,null,null,null,null,null,null,""]
[null,null,null,null,null,null,null,""]
[null,null,null,null,null,null,null,""]
[null,null,null,null,null,null,null,""]
[null,null,null,null,null,null,null,""]
[null,null,null,null,null,null,null,""]
[null,null,null,null,null,null,null,""]
[null,null,null,null,null,null,null,""]
[null,null,null,null,null,null,null,""]
[null,null,null,null,null,null,null,""]
[null,null,null,null,null,null,null,""]
[null,null,null,null,null,null,null,""]
[null,null,null,null,null,null,null,""]
[null,null,null,null,null,null,null,""]
[null,null,null,null,null,null,null,""]
[null,null,null,null,null,null,null,""]
[null,null,null,null,null,null,null,""]
[null,null,null,null,null,null,null,""]
[null,null,null,null,null,null,null,""]
[null,null,null,null,null,null,null,""]
[null,null,null,null,null,null,null,""]
[null,null,null,null,null,null,null,""]
[null,null,null,null,null,null,null,""]
[null,null,null,null,null,null,null,""]
[null,null,null,null,null,null,null,""]
[null,null,null,null,null,null,null,""]
[null,null,null,null,null,null,null,""]
[null,null,null,null,null,null,null,""]
[null,null,null,null,null,null,null,""]
[null,null,null,null,null,null,null,""]
[null,null,null,null,null,null,null,""]
[null,null,null,null,null,null,null,""]
[null,null,null,null,null,null,null,""]
[null,null,null,null,null,null,null,""]
[null,null,null,null,null,null,null,""]
[null,null,null,null,null,null,null,""]
[null,null,null,null,null,null,null,""]
[null,null,null,null,null,null,null,""]
[null,null,null,null,null,null,null,""]
[null,null,null,null,null,null,null,""]
[null,null,null,null,null,null,null,""]
[null,null,null,null,null,null,null,""]
[null,null,null,null,null,null,null,""]
[null,null,null,null,null,null,null,""]
[null,null,null,null,null,null,null,""]
[null,null,null,null,null,null,null,""]
[null,null,null,null,null,null,null,""]
[null,null,null,null,null,null,null,""]
[null,null,null,null,null,null,null,""]
[null,null,null,null,null,null,null,""]
[null,null,null,null,null,null,null,""]
[null,null,null,null,null,null,null,""]
[null,null,null,null,null,null,null,""]
[null,null,null,null,null,null,null,""]
[null,null,null,null,null,null,null,""]
[null,null,null,null,null,null,null,""]
[null,null,null,null,null,null,null,{"$f":"IF(AND(ISNUMBER(F856),ISNUMBER(D856),D856>0,ISNUMBER(F856)),F856*2.1,\"\")","v":""}]
[null,null,null,null,null,null,null,""]
[null,null,null,null,null,null,null,""]
[null,null,null,null,null,null,null,""]
[null,null,null,null,null,null,null,""]
[null,null,null,null,null,null,null,""]
[null,null,null,null,null,null,null,""]
[null,null,null,null,null,null,null,""]
[null,null,null,null,null,null,null,""]
[null,null,null,null,null,null,null,""]
[null,null,null,null,null,null,null,""]
[null,null,null,null,null,null,null,""]
[null,null,null,null,null,null,null,""]
[null,null,null,null,null,null,null,""]
[null,null,null,null,null,null,null,""]
[null,null,null,null,null,null,null,""]
[null,null,null,null,null,null,null,""]
[null,null,null,null,null,null,null,""]
[null,null,null,null,null,null,null,""]
[null,null,null,null,null,null,null,""]
[null,null,null,null,null,null,null,""]
[null,null,null,null,null,null,null,""]
[null,null,null,null,null,null,null,""]
[null,null,null,null,null,null,null,""]
[null,null,null,null,null,null,null,""]
[null,null,null,null,null,null,null,""]
[null,null,null,null,null,null,null,""]
[null,null,null,null,null,null,null,""]
[null,null,null,null,null,null,null,""]
[null,null,null,null,null,null,null,""]
[null,null,null,null,null,null,null,""]
[null,null,null,null,null,null,null,""]
[null,null,null,null,null,null,null,""]
[null,null,null,null,null,null,null,""]
[null,null,null,null,null,null,null,""]
[null,null,null,null,null,null,null,""]
[null,null,null,null,null,null,null,""]
[null,null,null,null,null,null,null,""]
[null,null,null,null,null,null,null,""]
[null,null,null,null,null,null,null,""]
[null,null,null,null,null,null,null,""]
[null,null,null,null,null,null,null,""]
[null,null,null,null,null,null,null,""]
[null,null,null,null,null,null,null,""]
[null,null,null,null,null,null,null,""]
[null,null,null,null,null,null,null,""]
[null,null,null,null,null,null,null,""]
[null,null,null,null,null,null,null,""]
[null,null,null,null,null,null,null,""]
[null,null,null,null,null,null,null,""]
[null,null,null,null,null,null,null,""]
[null,null,null,null,null,null,null,""]
[null,null,null,null,null,null,null,""]
[null,null,null,null,null,null,null,""]
[null,null,null,null,null,null,null,""]
[null,null,null,null,null,null,null,""]
[null,null,null,null,null,null,null,""]
[null,null,null,null,null,null,null,""]
[null,null,null,null,null,null,null,""]
[null,null,null,null,null,null,null,""]
[null,null,null,null,null,null,null,""]
[null,null,null,null,null,null,null,""]
[null,null,null,null,null,null,null,""]
[null,null,null,null,null,null,null,""]
[null,null,null,null,null,null,null,{"$f":"IF(AND(ISNUMBER(F920),ISNUMBER(D920),D920>0,ISNUMBER(F920)),F920*2.1,\"\")","v":""}]
[null,null,null,null,null,null,null,""]
[null,null,null,null,null,null,null,""]
[null,null,null,null,null,null,null,""]
[null,null,null,null,null,null,null,""]
[null,null,null,null,null,null,null,""]
[null,null,null,null,null,null,null,""]
[null,null,null,null,null,null,null,""]
[null,null,null,null,null,null,null,""]
[null,null,null,null,null,null,null,""]
[null,null,null,null,null,null,null,""]
[null,null,null,null,null,null,null,""]
[null,null,null,null,null,null,null,""]
[null,null,null,null,null,null,null,""]
[null,null,null,null,null,null,null,""]
[null,null,null,null,null,null,null,""]
[null,null,null,null,null,null,null,""]
[null,null,null,null,null,null,null,""]
[null,null,null,null,null,null,null,""]
[null,null,null,null,null,null,null,""]

{"sheet":"Ventas","index":1,"n_rows":26,"n_cols":5,"rows_kept":26,"cut":false,"hidden":false,"merged":[]}
["Cod Prod","Descripción Producto","Total","Cant.","Fecha de Venta"]
[]
["AlaIno","Alambre acero inoxidable",864.27600000000007,2,"2015-01-02"]
["AlaCor","Alambre retenes",1078.3500000000001,2,"2015-01-02"]
["AlaCro","Bujes cromado",683.94900000000007,1,"2015-01-02"]
["AlaEnd","Alambre endurecido",523.48800000000006,4,"2015-01-02"]
[null,"TOTAL VENTA",3528.0705600000001]
[]
["Emtrad","Bombas Aceite Motor 3304-3306",493425.13500000001,3,"2016-01-05"]
["Calcui","Computa 3408",3481430.9250000003,1,"2016-01-05"]
["Tablit","Alambre cromado",268800,4,"2016-01-05"]
[null,"TOTAL VENTA",4752894.7872000001]
[]
["AlaCor","Alambre retenes",1617.5250000000001,3,"2016-01-05"]
["AlaEnd","Alambre endurecido",654.36000000000013,5,"2016-01-05"]
["Bombas","Bombas Hidraul 637 G",753797.85600000003,1,"2016-01-05"]
["Calate","Alambre acero inoxidable",190499.4,2,"2016-01-05"]
["Hamite","Alambre corrugado",184263.723,3,"2016-01-05"]
[null,"TOTAL VENTA",1266532.8076800001]
[]
["AlaCor","Alambre retenes",1617.5250000000001,3,"2016-01-08"]
["AlaEnd","Alambre endurecido",654.36000000000013,5,"2016-01-08"]
["Bombas","Bombas Hidraul 637 G",753797.85600000003,1,"2016-01-08"]
["Calate","Alambre acero inoxidable",190499.4,2,"2016-01-08"]
["Hamite","Alambre corrugado",184263.723,3,"2016-01-08"]
[null,"TOTAL VENTA",1266532.8076800001]

{"sheet":"Filtro","index":2,"n_rows":5,"n_cols":14,"rows_kept":5,"cut":false,"hidden":true,"merged":[]}
["Cod Cliente RIF/CI","Nombre Cliente","Dirección","Pueblo/Ciudad","Telefono 1","Telefono 2","Fecha","Cod Cliente RIF/CI","Nombre Cliente","Dirección","Pueblo/Ciudad","Telefono 1","Telefono 2","Fecha"]
["E-19056809-0","Jose Albanio Marqusino del cuñal","Calle 2 de Octubre, cruce con 22","S. Carlos de Cojedes","0416-3005626","0412-8020408","2014-05-11","E-19056809-0","Jose Albanio Marqusino del cuñal","Calle 2 de Octubre, cruce con 22","S. Carlos de Cojedes","0416-3005626","0412-8020408","2014-05-11"]
["J-30912348-2","Manuel toño","Av. 199, con Av 199","Barquisimeto City","0246-2424528","0416-2456399","07-11-2014","J-30912348-2","Manuel toño","Av. 199, con Av 199","Barquisimeto City","0246-2424528","0416-2456399","07-11-2014"]
["J-30909211-6","Servicio a domicilio C.A.","Av. Alfredo Cardona N° 145 Urb. La Julia","Maracay","0243-2424527","0414-2456398","07-03-2015","J-30909211-6","Servicio a domicilio C.A.","Av. Alfredo Cardona N° 145 Urb. La Julia","Maracay","0243-2424527","0414-2456398","07-03-2015"]
["J-19173653-2","Taller de Pintura al horno El Gran Color","Cooperativa los guazamos","Mara","0412-3025698","0424-6520308","","J-19173653-2","Taller de Pintura al horno El Gran Color","Cooperativa los guazamos","Mara","0412-3025698","0424-6520308",""]